[Event "WCCC G10 2019"]
[Site "Weifang"]
[Date "2019.08.24"]
[Round "4.2"]
[White "Lee, Alice"]
[Black "Chen, Yining"]
[Result "1/2-1/2"]
[ECO "E41"]
[WhiteElo "1822"]
[BlackElo "1744"]
[Annotator "NA"]
[PlyCount "87"]
[EventDate "2019.08.21"]
[EventType "swiss"]
[EventCountry "CHN"]
[SourceTitle "playchess.com"]
[Source "ChessBase"]
[SourceQuality "1"]
[TimeControl "40/5400+30:1800+30"]

1. d4 {[%emt 0:00:00]} Nf6 {[%emt 0:00:00]} 2. c4 {[%emt 0:00:00]} e6 {[%emt 0:00:05]} 3. Nc3 {[%emt 0:00:05]} Bb4 {[%emt 0:00:21]} 4. e3 {[%emt 0:00:25]} Bxc3+ {[%emt 0:00:57]} 5. bxc3 {[%emt 0:00:17]} d6 {[%emt 0:02:03]} 6. Bd3 {[%emt 0:01:20]} O-O {[%emt 0:01:13]} 7. Ne2 {[%emt 0:02:03]} c5 {[%emt 0:02:55]} 8. O-O {[%emt 0:01:31]} Nc6 {[%emt 0:00:23]} 9. f3 {[%emt 0:06:43]} Qc7 {[%emt 0:02:01]} 10. e4 {[%emt 0:03:02]} e5 {[%emt 0:04:04]} 11. Be3 {[%emt 0:04:11]} b6 {[%emt 0:02:17]} 12. Rc1 {[%emt 0:03:56]} Ba6 {[%emt 0:03:19]} 13. Qa4 {[%emt 0:02:53]} Na5 {[%emt 0:02:55]} 14. Ng3 {[%emt 0:02:50]} Rfe8 {[%emt 0:06:51]} 15. Rfd1 {[%emt 0:07:47]} h6 {[%emt 0:07:36]} 16. Nf5 {[%emt 0:03:20]} Rad8 {[%emt 0:03:45]} 17. Bf2 $14 {[%emt 0:02:56]} Kh7 {[%emt 0:06:27]} 18. Ne3 {[%emt 0:07:28]} Qd7 {[%emt 0:02:21]} 19. Qc2 {[%emt 0:03:35]} g6 {[%emt 0:03:05]} 20. Bf1 {[%emt 0:03:25]} Qc7 {[%emt 0:06:30]} 21. Bh4 {[%emt 0:04:41]} g5 {[%emt 0:00:48]} 22. Bf2 {[%emt 0:03:35]} Bb7 {[%emt 0:03:51]} 23. Nd5 {[%emt 0:02:02]} Nxd5 {[%emt 0:02:01]} 24. cxd5 {[%emt 0:02:46]} Bc8 {[%emt 0:02:37]} 25. dxe5 {[%emt 0:03:53]} dxe5 {[%emt 0:01:21]} 26. Be2 {[%emt 0:03:25]} Nb7 {[%emt 0:01:07]} 27. h4 {[%emt 0:02:55]} Nd6 {[%emt 0:02:48]} 28. hxg5 {[%emt 0:02:32]} hxg5 {[%emt 0:00:04]} 29. c4 {[%emt 0:02:18]} Kg6 {[%emt 0:02:27]} 30. g4 {[%emt 0:01:30]} f6 {[%emt 0:01:52]} 31. Kg2 {[%emt 0:01:26]} Rh8 {[%emt 0:03:06]} 32. Rh1 {[%emt 0:01:46]} Nf7 {[%emt 0:02:04]} 33. a4 {[%emt 0:02:39]} Rxh1 {[%emt 0:03:18]} 34. Rxh1 {[%emt 0:00:28]} Rh8 {[%emt 0:00:17]} 35. Rxh8 {[%emt 0:01:42]} Nxh8 {[%emt 0:00:08]} 36. Qb1 {[%emt 0:00:58]} Nf7 {[%emt 0:01:25]} 37. a5 {[%emt 0:02:14]} Nd6 {[%emt 0:00:44]} 38. axb6 {[%emt 0:00:36]} axb6 {[%emt 0:01:05]} 39. Qa2 {[%emt 0:02:07]} Qb7 {[%emt 0:01:07]} 40. Qa4 {[%emt 0:00:58]} Bd7 {[%emt 0:01:07]} 41. Qa3 {[%emt 0:30:56]} Bc8 {[%emt 0:32:22]} 42. Qa4 {[%emt 0:06:05]} Bd7 {[%emt 0:00:07]} 43. Qa3 {[%emt 0:00:00]} Bc8 {[%emt 0:00:00]} 44. Qa4 {[%emt 0:09:14]} 1/2-1/2

[Event "WCCC G10 2019"]
[Site "Weifang"]
[Date "2019.08.24"]
[Round "4.3"]
[White "Ning, Isabelle Yixuan"]
[Black "Feng, Eunice"]
[Result "0-1"]
[ECO "A45"]
[WhiteElo "1701"]
[BlackElo "1280"]
[Annotator "NA"]
[PlyCount "64"]
[EventDate "2019.08.21"]
[EventType "swiss"]
[EventCountry "CHN"]
[SourceTitle "playchess.com"]
[Source "ChessBase"]
[SourceQuality "1"]
[TimeControl "40/5400+30:1800+30"]

1. d4 {[%emt 0:00:00]} Nf6 {[%emt 0:00:00]} 2. Bf4 {[%emt 0:00:00]} g6 {[%emt 0:00:00]} 3. Nc3 {[%emt 0:00:00]} d5 {[%emt 0:00:00]} 4. e3 {[%emt 0:00:08]} Bg7 {[%emt 0:00:08]} 5. h4 {[%emt 0:00:22]} c5 {[%emt 0:01:12]} 6. Nb5 {[%emt 0:01:07]} Na6 {[%emt 0:00:10]} 7. c3 {[%emt 0:00:32]} O-O {[%emt 0:10:38]} 8. h5 {[%emt 0:05:32]} Nxh5 {[%emt 0:06:07]} 9. Rxh5 {[%emt 0:00:25]} gxh5 {[%emt 0:00:07]} 10. Qxh5 {[%emt 0:00:06]} f5 {[%emt 0:01:02]} 11. Nf3 {[%emt 0:04:08]} Qe8 {[%emt 0:02:13]} 12. Qh4 {[%emt 0:02:37]} Bd7 {[%emt 0:03:39]} 13. Na3 {[%emt 0:03:52]} Rc8 {[%emt 0:08:27]} 14. O-O-O {[%emt 0:06:25]} cxd4 {[%emt 0:04:27]} 15. exd4 {[%emt 0:00:54]} Nc7 {[%emt 0:00:27]} 16. Bd3 {[%emt 0:08:33]} Ne6 {[%emt 0:12:46]} 17. Be5 {[%emt 0:12:11]} Qg6 {[%emt 0:11:51]} 18. Rh1 {[%emt 0:08:30]} h6 {[%emt 0:09:50]} 19. Rh3 {[%emt 0:08:48]} Qg4 {[%emt 0:09:56]} 20. Qxe7 {[%emt 0:07:03]} Rf7 {[%emt 0:00:14]} 21. Qb4 {[%emt 0:02:46]} Nf4 {[%emt 0:01:05]} 22. Bxf4 {[%emt 0:02:31]} Qxf4+ {[%emt 0:00:07]} 23. Kb1 {[%emt 0:02:54]} Re8 {[%emt 0:01:44]} 24. Qxb7 {[%emt 0:02:33]} Ba4 {[%emt 0:00:22]} 25. Qxd5 {[%emt 0:01:30]} Qxf3 {[%emt 0:00:24]} 26. Qxf7+ {[%emt 0:13:04]} Kxf7 {[%emt 0:00:14]} 27. Bc4+ {[%emt 0:00:10]} Kf8 {[%emt 0:00:20]} 28. Rh1 {[%emt 0:00:36]} Qxf2 {[%emt 0:01:14]} 29. b3 {[%emt 0:00:32]} Re1+ {[%emt 0:01:16]} 30. Rxe1 {[%emt 0:00:10]} Qxe1+ {[%emt 0:00:05]} 31. Kb2 {[%emt 0:00:15]} Bc6 {[%emt 0:00:14]} 32. Nc2 {[%emt 0:00:44]} Qd2 {[%emt 0:02:52]} 0-1

[Event "WCCC G10 2019"]
[Site "Weifang"]
[Date "2019.08.24"]
[Round "4.4"]
[White "Mou, Iris"]
[Black "Bui, Thi Ngoc Chi"]
[Result "1-0"]
[ECO "C01"]
[WhiteElo "1669"]
[BlackElo "1420"]
[Annotator "NA"]
[PlyCount "75"]
[EventDate "2019.08.21"]
[EventType "swiss"]
[EventCountry "CHN"]
[SourceTitle "playchess.com"]
[Source "ChessBase"]
[SourceQuality "1"]
[TimeControl "40/5400+30:1800+30"]

1. e4 {[%emt 0:00:00]} e6 {[%emt 0:00:00]} 2. d4 {[%emt 0:00:00]} d5 {[%emt 0:00:13]} 3. Bd3 {[%emt 0:00:00]} Nf6 {[%emt 0:01:03]} 4. e5 {[%emt 0:00:03]} Nfd7 {[%emt 0:00:28]} 5. f4 {[%emt 0:00:15]} c5 {[%emt 0:01:23]} 6. c3 {[%emt 0:00:13]} Nc6 {[%emt 0:01:00]} 7. Nf3 {[%emt 0:00:20]} Qb6 {[%emt 0:00:55]} 8. Bc2 {[%emt 0:00:10]} cxd4 {[%emt 0:00:51]} 9. cxd4 {[%emt 0:00:12]} f6 {[%emt 0:01:32]} 10. O-O {[%emt 0:03:51]} Be7 {[%emt 0:03:46]} 11. a3 {[%emt 0:02:58]} O-O {[%emt 0:04:12]} 12. Kh1 {[%emt 0:03:13]} a5 {[%emt 0:02:59]} 13. Nc3 {[%emt 0:01:54]} f5 {[%emt 0:04:28]} 14. Na4 {[%emt 0:04:55]} Qa7 {[%emt 0:02:53]} 15. Bd3 {[%emt 0:04:40]} Kh8 {[%emt 0:02:57]} 16. Be3 {[%emt 0:03:44]} Rb8 {[%emt 0:05:29]} 17. Rc1 {[%emt 0:03:58]} Nd8 {[%emt 0:05:16]} 18. Bb5 {[%emt 0:08:09]} b6 {[%emt 0:08:07]} 19. Qe2 {[%emt 0:03:22]} Nf7 {[%emt 0:03:25]} 20. Rc6 {[%emt 0:03:34]} Nd8 {[%emt 0:01:29]} 21. Rc3 {[%emt 0:00:47]} Nf7 {[%emt 0:00:39]} 22. Rfc1 {[%emt 0:01:14]} Qa8 {[%emt 0:05:50]} 23. Rc6 {[%emt 0:05:07]} Bd8 {[%emt 0:08:55]} 24. Rxc8 {[%emt 0:04:01]} Rxc8 {[%emt 0:00:47]} 25. Bxd7 {[%emt 0:00:11]} Rxc1+ {[%emt 0:02:26]} 26. Bxc1 {[%emt 0:00:05]} Bc7 {[%emt 0:02:30]} 27. Qb5 {[%emt 0:02:06]} Nd8 {[%emt 0:01:40]} 28. Ng5 {[%emt 0:01:22]} h6 {[%emt 0:01:14]} 29. Nxe6 {[%emt 0:01:10]} Nxe6 {[%emt 0:00:26]} 30. Bxe6 {[%emt 0:00:07]} Qd8 {[%emt 0:01:11]} 31. Bxd5 {[%emt 0:03:39]} Qh4 {[%emt 0:01:39]} 32. g3 {[%emt 0:00:55]} Qg4 {[%emt 0:00:26]} 33. Nc3 {[%emt 0:00:36]} h5 {[%emt 0:01:56]} 34. Kg2 {[%emt 0:04:02]} Bd8 {[%emt 0:02:25]} 35. Qc6 {[%emt 0:02:50]} Kh7 {[%emt 0:02:08]} 36. Qd6 {[%emt 0:02:27]} Re8 {[%emt 0:02:18]} 37. Bf7 {[%emt 0:01:07]} Rh8 {[%emt 0:00:14]} 38. h3 {[%emt 0:00:11]} 1-0

[Event "WCCC G10 2019"]
[Site "Weifang"]
[Date "2019.08.24"]
[Round "4.5"]
[White "Liao, Yingzhu"]
[Black "Khamdamova, Afruza"]
[Result "1-0"]
[ECO "C84"]
[WhiteElo "1393"]
[BlackElo "1607"]
[Annotator "NA"]
[PlyCount "77"]
[EventDate "2019.08.21"]
[EventType "swiss"]
[EventCountry "CHN"]
[SourceTitle "playchess.com"]
[Source "ChessBase"]
[SourceQuality "1"]
[TimeControl "40/5400+30:1800+30"]

1. e4 {[%emt 0:00:00]} e5 {[%emt 0:00:00]} 2. Nf3 {[%emt 0:00:00]} Nc6 {[%emt 0:00:00]} 3. Bb5 {[%emt 0:00:04]} a6 {[%emt 0:00:02]} 4. Ba4 {[%emt 0:00:08]} Nf6 {[%emt 0:00:08]} 5. d3 {[%emt 0:00:06]} d6 {[%emt 0:00:11]} 6. Nc3 {[%emt 0:00:21]} Be7 {[%emt 0:00:36]} 7. h3 {[%emt 0:00:39]} O-O {[%emt 0:00:29]} 8. O-O {[%emt 0:00:08]} b5 {[%emt 0:00:09]} 9. Bb3 {[%emt 0:00:04]} Na5 {[%emt 0:00:34]} 10. Be3 {[%emt 0:02:37]} Nxb3 {[%emt 0:00:23]} 11. axb3 {[%emt 0:00:08]} Bb7 {[%emt 0:00:06]} 12. d4 {[%emt 0:10:08]} Nxe4 13. dxe5 {[%emt 0:01:00]} Nxc3 {[%emt 0:40:08]} 14. bxc3 {[%emt 0:00:38]} Bxf3 {[%emt 0:00:54]} 15. Qxf3 {[%emt 0:00:00]} dxe5 {[%emt 0:00:10]} 16. Rfd1 {[%emt 0:05:26]} Qc8 {[%emt 0:16:15]} 17. Qd5 {[%emt 0:02:24]} Bd6 {[%emt 0:12:28]} 18. c4 {[%emt 0:03:14]} bxc4 {[%emt 0:00:00]} 19. bxc4 {[%emt 0:00:06]} Re8 {[%emt 0:01:34]} 20. c5 {[%emt 0:01:17]} Bf8 {[%emt 0:00:12]} 21. c6 {[%emt 0:01:30]} Qe6 {[%emt 0:01:46]} 22. Kh2 {[%emt 0:11:17]} Qxd5 {[%emt 0:01:32]} 23. Rxd5 {[%emt 0:00:31]} Re6 {[%emt 0:00:05]} 24. Bc5 {[%emt 0:03:19]} Rxc6 {[%emt 0:11:58]} 25. Bxf8 {[%emt 0:00:41]} Kxf8 {[%emt 0:00:04]} 26. Ra2 {[%emt 0:04:07]} f6 {[%emt 0:01:57]} 27. Rd7 {[%emt 0:01:55]} a5 {[%emt 0:04:48]} 28. Kg3 {[%emt 0:02:43]} a4 {[%emt 0:00:39]} 29. Kf3 {[%emt 0:04:13]} Ra7 {[%emt 0:06:26]} 30. Ke2 {[%emt 0:00:22]} Rd6 {[%emt 0:00:09]} 31. Rxd6 {[%emt 0:00:28]} cxd6 {[%emt 0:00:05]} 32. Kd3 {[%emt 0:00:04]} Ke7 {[%emt 0:00:09]} 33. c4 {[%emt 0:00:23]} a3 {[%emt 0:00:55]} 34. Kc3 {[%emt 0:00:10]} Kd7 {[%emt 0:00:18]} 35. Kb3 {[%emt 0:01:24]} Kc6 {[%emt 0:00:39]} 36. Rxa3 {[%emt 0:00:13]} Rxa3+ {[%emt 0:00:04]} 37. Kxa3 {[%emt 0:00:07]} Kc5 {[%emt 0:00:04]} 38. Kb3 {[%emt 0:00:16]} Kd4 {[%emt 0:01:45]} 39. Kb4 {[%emt 0:00:32] Kd5} 1-0

[Event "WCCC G10 2019"]
[Site "Weifang"]
[Date "2019.08.24"]
[Round "4.6"]
[White "Nurgaliyeva, Zarina"]
[Black "Yesugen Khuchbayar"]
[Result "1-0"]
[ECO "B52"]
[WhiteElo "1474"]
[BlackElo "1325"]
[Annotator "NA"]
[PlyCount "119"]
[EventDate "2019.08.21"]
[EventType "swiss"]
[EventCountry "CHN"]
[SourceTitle "playchess.com"]
[Source "ChessBase"]
[SourceQuality "1"]
[TimeControl "40/5400+30:1800+30"]

1. e4 {[%emt 0:00:00]} c5 {[%emt 0:00:00]} 2. Nf3 {[%emt 0:00:00]} d6 {[%emt 0:00:00]} 3. Bb5+ {[%emt 0:00:00]} Bd7 {[%emt 0:00:04]} 4. Bxd7+ {[%emt 0:00:00]} Qxd7 {[%emt 0:00:12]} 5. O-O {[%emt 0:00:00]} e6 {[%emt 0:00:24]} 6. c3 {[%emt 0:00:15]} Nc6 {[%emt 0:00:54]} 7. d4 {[%emt 0:00:06]} cxd4 {[%emt 0:01:32]} 8. cxd4 {[%emt 0:00:04]} Nf6 {[%emt 0:01:55]} 9. Re1 {[%emt 0:00:16]} d5 {[%emt 0:27:04]} 10. e5 {[%emt 0:00:25]} Ne4 {[%emt 0:02:00]} 11. Nbd2 {[%emt 0:00:14]} Nxd2 {[%emt 0:02:24]} 12. Bxd2 {[%emt 0:01:08]} Nb4 {[%emt 0:05:25]} 13. Bc3 {[%emt 0:12:29]} O-O-O {[%emt 0:15:49]} 14. a3 {[%emt 0:02:48]} Nc6 {[%emt 0:01:23]} 15. b4 {[%emt 0:03:46]} h6 {[%emt 0:14:29]} 16. b5 {[%emt 0:15:28]} Ne7 {[%emt 0:00:08]} 17. Ba5 {[%emt 0:02:34]} Re8 {[%emt 0:11:37]} 18. Qa4 {[%emt 0:03:50]} Kb8 {[%emt 0:00:46]} 19. Bb4 {[%emt 0:06:55]} Ng6 {[%emt 0:01:53]} 20. Bc5 {[%emt 0:01:11]} Bxc5 {[%emt 0:01:57]} 21. dxc5 {[%emt 0:00:11]} Rc8 {[%emt 0:00:45]} 22. Rec1 {[%emt 0:00:56]} Qc7 {[%emt 0:01:50]} 23. Qd4 {[%emt 0:02:01]} Ne7 {[%emt 0:00:40]} 24. a4 {[%emt 0:01:31]} Nf5 {[%emt 0:00:30]} 25. Qb4 {[%emt 0:01:05]} Rhd8 {[%emt 0:01:08]} 26. a5 {[%emt 0:11:40]} d4 {[%emt 0:01:47]} 27. c6 {[%emt 0:01:18]} Qe7 {[%emt 0:01:59]} 28. Qa4 {[%emt 0:03:50]} Rd5 {[%emt 0:02:39]} 29. cxb7 {[%emt 0:04:53]} Qxb7 {[%emt 0:00:15]} 30. b6 {[%emt 0:01:25]} Rxc1+ {[%emt 0:02:04]} 31. Rxc1 {[%emt 0:00:05]} axb6 {[%emt 0:00:11]} 32. a6 {[%emt 0:00:45]} Qd7 {[%emt 0:00:53]} 33. a7+ {[%emt 0:06:46]} Ka8 {[%emt 0:00:11]} 34. Qa6 {[%emt 0:00:20]} Rc5 {[%emt 0:00:19]} 35. Ra1 {[%emt 0:00:08]} Qc7 {[%emt 0:00:26]} 36. g4 {[%emt 0:00:36]} Ne7 {[%emt 0:00:54]} 37. Nxd4 {[%emt 0:00:22]} Rc1+ {[%emt 0:00:38]} 38. Rxc1 {[%emt 0:00:26]} Qxc1+ {[%emt 0:00:03]} 39. Kg2 {[%emt 0:00:26]} Qc5 {[%emt 0:00:52]} 40. Nb5 {[%emt 0:01:01]} Qc6+ {[%emt 0:00:14]} 41. f3 {[%emt 0:30:40]} Ng6 {[%emt 0:30:51]} 42. Nd4 {[%emt 0:01:39]} Qb7 {[%emt 0:00:56]} 43. Qa4 {[%emt 0:00:19]} b5 {[%emt 0:00:56]} 44. Qxb5 {[%emt 0:01:20]} Qxb5 {[%emt 0:00:28]} 45. Nxb5 {[%emt 0:00:05]} Nxe5 {[%emt 0:00:14]} 46. Kg3 {[%emt 0:00:47]} Nc6 {[%emt 0:00:00]} 47. Kf4 {[%emt 0:00:00]} Nxa7 {[%emt 0:00:00]} 48. Nxa7 {[%emt 0:00:00]} Kxa7 {[%emt 0:00:00]} 49. Ke5 {[%emt 0:00:00]} Kb6 {[%emt 0:00:00]} 50. Kd6 {[%emt 0:00:00]} Kb5 {[%emt 0:02:14]} 51. Ke7 {[%emt 0:00:00]} Kc5 {[%emt 0:00:45]} 52. Kxf7 {[%emt 0:00:00]} e5 {[%emt 0:00:35]} 53. Kxg7 {[%emt 0:00:00]} Kd4 {[%emt 0:00:13]} 54. Kxh6 {[%emt 0:00:00]} Ke3 {[%emt 0:00:13]} 55. g5 {[%emt 0:00:00]} Kxf3 {[%emt 0:00:16]} 56. g6 {[%emt 0:00:00]} e4 {[%emt 0:00:51]} 57. g7 {[%emt 0:00:00]} Kg2 {[%emt 0:00:23]} 58. g8=Q+ {[%emt 0:00:00]} Kxh2 {[%emt 0:00:15]} 59. Qe6 {[%emt 0:00:00]} Kg3 {[%emt 0:00:29]} 60. Qxe4 {[%emt 0:00:00]} 1-0

[Event "WCCC G10 2019"]
[Site "Weifang"]
[Date "2019.08.24"]
[Round "4.7"]
[White "Mai, Hieu Linh"]
[Black "Feng, Angela"]
[Result "1-0"]
[ECO "C54"]
[WhiteElo "1344"]
[BlackElo "1426"]
[Annotator "NA"]
[PlyCount "28"]
[EventDate "2019.08.21"]
[EventType "swiss"]
[EventCountry "CHN"]
[SourceTitle "playchess.com"]
[Source "ChessBase"]
[SourceQuality "1"]
[TimeControl "40/5400+30:1800+30"]

1. e4 {[%emt 0:00:00]} e5 {[%emt 0:00:00]} 2. Nf3 {[%emt 0:00:17]} Nc6 {[%emt 0:00:00]} 3. Bc4 {[%emt 0:00:36]} Bc5 {[%emt 0:00:05]} 4. c3 {[%emt 0:00:40]} Nf6 {[%emt 0:00:08]} 5. d3 {[%emt 0:00:12]} a6 {[%emt 0:00:30]} 6. Bb3 {[%emt 0:01:20]} Ba7 {[%emt 0:00:20]} 7. O-O {[%emt 0:00:31]} O-O {[%emt 0:00:08]} 8. Nbd2 {[%emt 0:00:45]} d6 {[%emt 0:00:22]} 9. Re1 {[%emt 0:01:03]} Ng4 {[%emt 0:00:47]} 10. Re2 {[%emt 0:01:13]} Kh8 {[%emt 0:00:25]} 11. h3 {[%emt 0:01:14]} Nh6 {[%emt 0:00:45]} 12. Nf1 {[%emt 0:01:14]} f5 {[%emt 0:03:38]} 13. Bxh6 {[%emt 0:02:33]} gxh6 {[%emt 0:00:08]} 14. exf5 {[%emt 0:02:41]} Bxf5 {[%emt 0:00:30]} 1-0

[Event "WCCC G10 2019"]
[Site "Weifang"]
[Date "2019.08.24"]
[Round "4.9"]
[White "Zhou, Yafei"]
[Black "Huynh, Phuc Minh Phuong"]
[Result "1/2-1/2"]
[ECO "D44"]
[WhiteElo "1757"]
[BlackElo "1254"]
[Annotator "NA"]
[PlyCount "105"]
[EventDate "2019.08.21"]
[EventType "swiss"]
[EventCountry "CHN"]
[SourceTitle "playchess.com"]
[Source "ChessBase"]
[SourceQuality "1"]
[TimeControl "40/5400+30:1800+30"]

1. d4 {[%emt 0:00:00]} d5 {[%emt 0:00:00]} 2. c4 {[%emt 0:00:00]} c6 {[%emt 0:00:00]} 3. Nf3 {[%emt 0:00:00]} e6 {[%emt 0:00:01]} 4. Nc3 {[%emt 0:02:28]} Nf6 {[%emt 0:00:22]} 5. Bg5 {[%emt 0:01:00]} dxc4 {[%emt 0:05:52]} 6. e4 {[%emt 0:00:48]} Be7 {[%emt 0:02:48]} 7. Bxc4 {[%emt 0:00:04]} Nbd7 {[%emt 0:00:45]} 8. O-O {[%emt 0:01:11]} h6 {[%emt 0:01:46]} 9. Bf4 {[%emt 0:02:26]} O-O {[%emt 0:00:57]} 10. Qe2 {[%emt 0:02:21]} b5 {[%emt 0:01:31]} 11. Bd3 {[%emt 0:01:31]} a6 {[%emt 0:00:58]} 12. e5 {[%emt 0:03:16]} Nh7 {[%emt 0:08:33]} 13. Qe4 {[%emt 0:15:20]} f5 {[%emt 0:00:52]} 14. exf6 {[%emt 0:03:28]} Ndxf6 {[%emt 0:00:18]} 15. Qxc6 {[%emt 0:03:51]} Bd7 {[%emt 0:00:37]} 16. Qc7 {[%emt 0:01:05]} Qxc7 {[%emt 0:02:07]} 17. Bxc7 {[%emt 0:00:56]} Rac8 {[%emt 0:01:13]} 18. Bg3 {[%emt 0:03:17]} Nh5 {[%emt 0:01:13]} 19. Ne5 {[%emt 0:01:30]} Nxg3 {[%emt 0:05:38]} 20. Nxd7 {[%emt 0:05:35]} Rfd8 {[%emt 0:04:50]} 21. hxg3 {[%emt 0:02:13]} Rxd7 {[%emt 0:03:07]} 22. d5 {[%emt 0:09:40]} Nf6 {[%emt 0:13:11]} 23. Rfe1 {[%emt 0:08:06]} Nxd5 {[%emt 0:10:15]} 24. Rad1 {[%emt 0:04:07]} Rcd8 {[%emt 0:03:17]} 25. Nxd5 {[%emt 0:06:16]} Rxd5 {[%emt 0:04:20]} 26. Bc2 {[%emt 0:03:46]} Rxd1 {[%emt 0:03:10]} 27. Rxd1 {[%emt 0:00:32]} Rxd1+ {[%emt 0:00:35]} 28. Bxd1 {[%emt 0:00:05]} a5 {[%emt 0:00:15]} 29. Kf1 {[%emt 0:00:14]} Kf7 {[%emt 0:01:09]} 30. f4 {[%emt 0:00:49]} Kf6 {[%emt 0:00:07]} 31. Kf2 {[%emt 0:00:12]} e5 {[%emt 0:06:11]} 32. Kf3 {[%emt 0:00:31]} Bd6 {[%emt 0:00:19]} 33. Bc2 {[%emt 0:00:32]} h5 {[%emt 0:04:13]} 34. f5 {[%emt 0:00:45]} Kg5 {[%emt 0:03:40]} 35. Ke4 {[%emt 0:03:57]} Kg4 {[%emt 0:00:33]} 36. Kd5 {[%emt 0:00:49]} Be7 {[%emt 0:00:26]} 37. Kxe5 {[%emt 0:01:13]} Bf6+ {[%emt 0:00:33]} 38. Kd5 {[%emt 0:01:56]} Bxb2 {[%emt 0:00:07]} 39. Kc5 {[%emt 0:02:53]} b4 {[%emt 0:01:27]} 40. Bd1+ {[%emt 0:02:28]} Kxg3 {[%emt 0:00:16]} 41. Bxh5 {[%emt 0:30:04]} Kxg2 {[%emt 0:31:02]} 42. Kb5 {[%emt 0:00:07]} Bc3 {[%emt 0:00:10]} 43. Ka4 {[%emt 0:01:01]} Kf2 {[%emt 0:00:40]} 44. Kb3 {[%emt 0:00:14]} Ke3 {[%emt 0:00:07]} 45. Bf7 {[%emt 0:00:36]} Kd2 {[%emt 0:01:38]} 46. Be6 {[%emt 0:00:07]} Ke3 {[%emt 0:00:33]} 47. Bf7 {[%emt 0:00:13]} Kf4 {[%emt 0:00:27]} 48. Be6 {[%emt 0:00:27]} Ke5 {[%emt 0:00:18]} 49. Bc8 {[%emt 0:00:19]} Kf6 {[%emt 0:00:22]} 50. Bd7 {[%emt 0:00:15]} Ke7 {[%emt 0:00:29]} 51. Bc8 {[%emt 0:00:12]} Kd6 {[%emt 0:00:28]} 52. Ba6 {[%emt 0:00:34]} Kc6 {[%emt 0:00:50]} 53. Bc8 {[%emt 0:00:47]} 1/2-1/2

[Event "WCCC G10 2019"]
[Site "Weifang"]
[Date "2019.08.24"]
[Round "4.10"]
[White "Gaszka, Zuzanna"]
[Black "Lin, Ze Jun"]
[Result "1/2-1/2"]
[ECO "D90"]
[WhiteElo "1230"]
[BlackElo "1674"]
[Annotator "NA"]
[PlyCount "61"]
[EventDate "2019.08.21"]
[EventType "swiss"]
[EventCountry "CHN"]
[SourceTitle "playchess.com"]
[Source "ChessBase"]
[SourceQuality "1"]
[TimeControl "40/5400+30:1800+30"]

1. d4 {[%emt 0:00:00]} Nf6 {[%emt 0:00:00]} 2. c4 {[%emt 0:00:00]} g6 {[%emt 0:00:00]} 3. Nc3 {[%emt 0:00:07]} d5 {[%emt 0:01:11]} 4. Nf3 {[%emt 0:00:38]} Bg7 {[%emt 0:00:17]} 5. h4 {[%emt 0:00:44]} O-O {[%emt 0:04:53]} 6. cxd5 {[%emt 0:00:46]} Nxd5 {[%emt 0:01:07]} 7. h5 {[%emt 0:00:39]} Nxc3 {[%emt 0:05:12]} 8. bxc3 {[%emt 0:00:21]} Bf5 {[%emt 0:09:50]} 9. Qb3 {[%emt 0:02:38]} b6 {[%emt 0:11:43]} 10. hxg6 {[%emt 0:07:43]} Bxg6 {[%emt 0:00:35]} 11. Bh6 {[%emt 0:02:49]} Bxh6 {[%emt 0:01:29]} 12. Rxh6 {[%emt 0:00:21]} Kg7 {[%emt 0:00:50]} 13. Rh1 {[%emt 0:01:24]} Nd7 {[%emt 0:01:47]} 14. Nh4 {[%emt 0:04:18]} Nf6 {[%emt 0:04:53]} 15. Qb5 {[%emt 0:04:18]} Qd5 {[%emt 0:02:48]} 16. Qb2 {[%emt 0:07:46]} c5 {[%emt 0:02:14]} 17. Nxg6 {[%emt 0:03:03]} hxg6 {[%emt 0:00:26]} 18. Qd2 {[%emt 0:04:31]} Rh8 {[%emt 0:00:22]} 19. Rxh8 {[%emt 0:03:33]} Rxh8 {[%emt 0:00:12]} 20. f3 {[%emt 0:03:08]} cxd4 {[%emt 0:02:13]} 21. cxd4 {[%emt 0:01:29]} e5 {[%emt 0:04:53]} 22. e3 {[%emt 0:16:28]} exd4 {[%emt 0:06:13]} 23. Qxd4 {[%emt 0:01:55]} Qa5+ {[%emt 0:01:18]} 24. Kf2 {[%emt 0:04:28]} Rc8 {[%emt 0:02:30]} 25. Kg1 {[%emt 0:11:00]} Rc2 {[%emt 0:01:54]} 26. a3 {[%emt 0:02:17]} Rd2 {[%emt 0:02:21]} 27. Qb4 {[%emt 0:02:02]} Qd5 {[%emt 0:05:22]} 28. e4 {[%emt 0:03:15]} Qg5 {[%emt 0:03:28]} 29. Qc3 {[%emt 0:01:41]} Qf4 {[%emt 0:05:57]} 30. Re1 {[%emt 0:03:34]} Rd8 {[%emt 0:07:21]} 31. Bc4 {[%emt 0:01:29]} 1/2-1/2